[Event "SixDays Budapest IM-B January 2024"]
[Site "Budapest"]
[Date "2024.01.31"]
[Round "8.3"]
[White "Nemitz, Alfred"]
[Black "Srinath, Rao S.V."]
[Result "1/2-1/2"]
[ECO "A48"]
[WhiteElo "2223"]
[BlackElo "2260"]
[Annotator "NA RC"]
[PlyCount "55"]
[EventDate "2024.01.26"]
[EventType "tourn"]
[EventCountry "HUN"]
[SourceTitle "playchess.com"]
[Source "ChessBase"]
[SourceQuality "1"]
[TimeControl "5400+30"]

1. d4 {[%emt 0:00:02]} Nf6 {[%emt 0:00:09]} 2. Nf3 {[%emt 0:00:15]} g6 {[%emt 0:00:07]} 3. Bg5 {[%emt 0:00:06]} Bg7 {[%emt 0:00:05]} 4. Nbd2 {[%emt 0:00:04]} O-O {[%emt 0:00:37]} 5. c3 {[%emt 0:00:03]} d5 {[%emt 0:00:29]} 6. e3 {[%emt 0:00:18]} Nbd7 {[%emt 0:00:16]} 7. Be2 {[%emt 0:00:23]} Re8 {[%emt 0:00:14]} 8. O-O {[%emt 0:00:31]} e5 {[%emt 0:03:15]} 9. h3 {[%emt 0:00:07]} e4 {[%emt 0:02:45]} 10. Nh2 {[%emt 0:00:26]} h6 {[%emt 0:04:18]} 11. Bh4 {[%emt 0:00:11]} c6 {[%emt 0:10:49]} 12. c4 {[%emt 0:07:43]} Nf8 {[%emt 0:05:51]} 13. cxd5 {[%emt 0:02:46]} cxd5 {[%emt 0:00:23]} 14. Rc1 {[%emt 0:00:13]} Qb6 {[%emt 0:02:42]} 15. Qb3 {[%emt 0:04:28]} Be6 {[%emt 0:01:09]} 16. Qxb6 {[%emt 0:00:51]} axb6 {[%emt 0:00:05]} 17. a3 {[%emt 0:00:25]} Rec8 {[%emt 0:00:09]} 18. Nb1 {[%emt 0:01:00]} Ne8 {[%emt 0:04:20]} 19. Be7 {[%emt 0:01:00]} Nd7 {[%emt 0:01:52]} 20. Nc3 {[%emt 0:01:06]} Bf8 {[%emt 0:00:57]} 21. Bxf8 {[%emt 0:00:31]} Kxf8 {[%emt 0:00:04]} 22. f3 {[%emt 0:02:13]} exf3 {[%emt 0:03:07]} 23. Bxf3 {[%emt 0:03:40]} Ndf6 {[%emt 0:00:24]} 24. Ng4 {[%emt 0:11:44]} Nxg4 {[%emt 0:02:40]} 25. Bxg4 {[%emt 0:01:05]} Bxg4 {[%emt 0:03:21]} 26. hxg4 {[%emt 0:00:30]} Rd8 {[%emt 0:00:03]} 27. Nb5 {[%emt 0:02:09]} Rac8 {[%emt 0:02:03]} 28. Kf2 {[%emt 0:03:26]} 1/2-1/2

[Event "SixDays Budapest IM-B January 2024"]
[Site "Budapest"]
[Date "2024.01.31"]
[Round "8.4"]
[White "Ihnat, Marek"]
[Black "Semprun Martinez, Fernando"]
[Result "1/2-1/2"]
[ECO "C95"]
[WhiteElo "2111"]
[BlackElo "2071"]
[Annotator "NA COMBH"]
[PlyCount "91"]
[EventDate "2024.01.26"]
[EventType "tourn"]
[EventCountry "HUN"]
[SourceTitle "playchess.com"]
[Source "ChessBase"]
[SourceQuality "1"]
[TimeControl "5400+30"]

1. e4 {[%emt 0:00:04]} e5 {[%emt 0:03:22]} 2. Nf3 {[%emt 0:00:07]} Nc6 {[%emt 0:00:03]} 3. Bb5 {[%emt 0:00:05]} a6 4. Ba4 {[%emt 0:00:05]} Nf6 {[%emt 0:00:06]} 5. O-O {[%emt 0:00:07]} Be7 {[%emt 0:00:01]} 6. Re1 {[%emt 0:00:07]} b5 {[%emt 0:00:02]} 7. Bb3 {[%emt 0:00:05]} d6 {[%emt 0:00:18]} 8. c3 {[%emt 0:00:07]} O-O {[%emt 0:00:03]} 9. h3 {[%emt 0:00:05]} Nb8 {[%emt 0:00:01]} 10. d4 {[%emt 0:00:08]} Nbd7 {[%emt 0:00:01]} 11. Nbd2 {[%emt 0:00:11]} Bb7 {[%emt 0:00:01]} 12. Bc2 {[%emt 0:00:11]} Re8 {[%emt 0:00:21]} 13. Nf1 {[%emt 0:00:09]} Bf8 {[%emt 0:00:08]} 14. Ng3 {[%emt 0:00:07]} g6 {[%emt 0:00:05]} 15. b3 {[%emt 0:00:04]} Bg7 {[%emt 0:01:43]} 16. d5 {[%emt 0:00:06]} Nb6 {[%emt 0:03:13]} 17. Qe2 {[%emt 0:00:57]} c5 {[%emt 0:00:39]} 18. c4 {[%emt 0:01:08]} b4 {[%emt 0:03:41]} 19. Be3 {[%emt 0:06:38]} a5 {[%emt 0:01:16]} 20. a3 {[%emt 0:00:43]} Nxe4 {[%emt 0:14:32]} 21. Bxe4 {[%emt 0:12:36]} f5 {[%emt 0:00:58]} 22. Bxf5 {[%emt 0:09:44]} gxf5 {[%emt 0:00:40]} 23. Nxf5 {[%emt 0:00:11]} e4 {[%emt 0:00:22]} 24. Ng5 {[%emt 0:05:47]} Bxa1 {[%emt 0:03:48]} 25. Rxa1 {[%emt 0:03:00]} Qf6 {[%emt 0:00:46]} 26. Qg4 {[%emt 0:20:50]} Kh8 {[%emt 0:03:12]} 27. Ra2 {[%emt 0:02:19]} Bc8 {[%emt 0:03:00]} 28. Nxe4 {[%emt 0:23:13]} Rxe4 {[%emt 0:00:45]} 29. Qxe4 {[%emt 0:00:14]} Bxf5 {[%emt 0:00:17]} 30. Qf4 {[%emt 0:00:56]} Nd7 {[%emt 0:05:41]} 31. axb4 {[%emt 0:00:21]} cxb4 {[%emt 0:00:04]} 32. Bd4 {[%emt 0:02:02]} Ne5 {[%emt 0:00:08]} 33. g4 {[%emt 0:03:54]} Rg8 {[%emt 0:02:45]} 34. Kh2 {[%emt 0:03:46]} Rg5 {[%emt 0:00:48]} 35. gxf5 {[%emt 0:05:57]} Rxf5 {[%emt 0:00:25]} 36. Bxe5 {[%emt 0:01:06]} dxe5 {[%emt 0:00:28]} 37. Qg3 {[%emt 0:01:05]} Rf3 {[%emt 0:00:22]} 38. Qg2 {[%emt 0:00:42]} Qf4+ {[%emt 0:00:46]} 39. Kg1 {[%emt 0:00:30]} Rxb3 {[%emt 0:02:41]} 40. Qg4 {[%emt 0:00:26]} Qxg4+ {[%emt 0:04:57]} 41. hxg4 {[%emt 0:00:02]} Rc3 {[%emt 0:00:01]} 42. Rxa5 {[%emt 0:00:41]} Rxc4 {[%emt 0:00:02]} 43. f3 {[%emt 0:00:40]} b3 {[%emt 0:07:12]} 44. Rb5 {[%emt 0:00:06]} Rc3 {[%emt 0:00:50]} 45. d6 {[%emt 0:00:26]} Rd3 {[%emt 0:00:59]} 46. d7 {[%emt 0:01:07]} 1/2-1/2

[Event "SixDays Budapest IM-B January 2024"]
[Site "Budapest"]
[Date "2024.01.31"]
[Round "8.5"]
[White "Nemeth, Zoltan"]
[Black "Kolimar, Kristof Pal"]
[Result "1/2-1/2"]
[ECO "E67"]
[WhiteElo "2194"]
[BlackElo "2304"]
[Annotator "RC"]
[PlyCount "63"]
[EventDate "2024.01.26"]
[EventType "tourn"]
[EventCountry "HUN"]
[SourceTitle "playchess.com"]
[Source "ChessBase"]
[SourceQuality "1"]
[TimeControl "5400+30"]

1. c4 {[%emt 0:00:06]} Nf6 {[%emt 0:00:05]} 2. Nc3 {[%emt 0:00:20]} g6 {[%emt 0:00:11]} 3. g3 {[%emt 0:01:38]} Bg7 {[%emt 0:00:16]} 4. Bg2 {[%emt 0:00:09]} O-O {[%emt 0:00:10]} 5. Nf3 {[%emt 0:02:05]} d6 {[%emt 0:00:13]} 6. d4 {[%emt 0:00:07]} Nbd7 {[%emt 0:00:04]} 7. O-O {[%emt 0:01:15]} e5 {[%emt 0:00:12]} 8. b3 {[%emt 0:03:06]} Re8 {[%emt 0:05:10]} 9. h3 {[%emt 0:06:18]} c6 {[%emt 0:04:47]} 10. dxe5 {[%emt 0:01:47]} dxe5 {[%emt 0:00:53]} 11. Be3 {[%emt 0:00:53]} Qe7 {[%emt 0:08:28]} 12. Qd2 {[%emt 0:04:00]} Nc5 {[%emt 0:05:24]} 13. Rad1 {[%emt 0:00:18]} Nfe4 {[%emt 0:07:19]} 14. Nxe4 {[%emt 0:00:22]} Nxe4 {[%emt 0:00:05]} 15. Qc1 {[%emt 0:01:43]} f5 {[%emt 0:04:08]} 16. Nd2 {[%emt 0:02:47]} Nf6 {[%emt 0:01:26]} 17. c5 {[%emt 0:02:45]} Nd5 {[%emt 0:03:33]} 18. Nc4 {[%emt 0:00:07]} e4 {[%emt 0:04:05]} 19. Nd6 {[%emt 0:00:36]} Rf8 {[%emt 0:00:05]} 20. Bd4 {[%emt 0:07:05]} Be6 {[%emt 0:04:55]} 21. Qb2 {[%emt 0:00:37]} b6 {[%emt 0:02:53]} 22. Rc1 {[%emt 0:03:55]} Rfd8 {[%emt 0:09:19]} 23. Bxg7 {[%emt 0:01:15]} Qxg7 {[%emt 0:00:04]} 24. Qxg7+ {[%emt 0:00:46]} Kxg7 {[%emt 0:00:01]} 25. Rfd1 {[%emt 0:01:17]} Kf6 {[%emt 0:06:34]} 26. a3 {[%emt 0:03:14]} Rab8 {[%emt 0:01:21]} 27. b4 {[%emt 0:00:50]} bxc5 {[%emt 0:00:22]} 28. bxc5 {[%emt 0:00:07]} Rb2 {[%emt 0:01:21]} 29. f3 {[%emt 0:07:02]} Rxe2 {[%emt 0:10:36]} 30. fxe4 {[%emt 0:00:06]} fxe4 {[%emt 0:01:26]} 31. Nxe4+ {[%emt 0:00:35]} Ke7 {[%emt 0:00:48]} 32. Re1 {[%emt 0:02:03]} 1/2-1/2

[Event "SixDays Budapest IM-B January 2024"]
[Site "Budapest"]
[Date "2024.02.01"]
[Round "9.1"]
[White "Kolimar, Kristof Pal"]
[Black "Sgircea, Silvia-Raluca"]
[Result "1/2-1/2"]
[ECO "B38"]
[WhiteElo "2304"]
[BlackElo "2242"]
[Annotator "ChessBase"]
[PlyCount "70"]
[EventDate "2024.01.26"]
[EventType "tourn"]
[EventCountry "HUN"]
[SourceTitle "playchess.com"]
[Source "ChessBase"]
[SourceQuality "1"]
[TimeControl "5400+30"]

1. Nf3 {[%emt 0:07:21]} c5 {[%emt 0:00:41]} 2. c4 {[%emt 0:00:04]} g6 {[%emt 0:00:04]} 3. d4 {[%emt 0:00:07]} cxd4 {[%emt 0:00:05]} 4. Nxd4 {[%emt 0:00:05]} Nc6 {[%emt 0:00:05]} 5. e4 {[%emt 0:00:07]} Bg7 {[%emt 0:00:07]} 6. Be3 {[%emt 0:00:04]} Nf6 {[%emt 0:00:06]} 7. Nc3 {[%emt 0:00:05]} d6 {[%emt 0:00:04]} 8. Be2 {[%emt 0:00:45]} O-O {[%emt 0:00:08]} 9. O-O {[%emt 0:00:09]} Bd7 {[%emt 0:00:15]} 10. f3 {[%emt 0:00:11]} Nxd4 {[%emt 0:00:06]} 11. Bxd4 {[%emt 0:00:07]} a5 {[%emt 0:00:03]} 12. b3 {[%emt 0:00:40]} Bc6 {[%emt 0:00:06]} 13. Qd2 {[%emt 0:00:03]} Nd7 {[%emt 0:00:14]} 14. Bf2 {[%emt 0:00:17]} Nc5 {[%emt 0:00:20]} 15. Rab1 {[%emt 0:00:15]} Be5 {[%emt 0:01:02]} 16. Rfd1 {[%emt 0:06:02]} e6 {[%emt 0:01:41]} 17. Nb5 {[%emt 0:01:10]} Bxb5 {[%emt 0:00:07]} 18. cxb5 {[%emt 0:00:05]} Qe7 {[%emt 0:00:15]} 19. Qe3 {[%emt 0:07:41]} Qf6 {[%emt 0:11:43]} 20. g3 {[%emt 0:09:48]} g5 {[%emt 0:01:08]} 21. Kh1 {[%emt 0:07:04]} Rfd8 {[%emt 0:08:56]} 22. b6 {[%emt 0:03:50]} h6 {[%emt 0:17:35]} 23. Rbc1 {[%emt 0:06:34]} Bb2 {[%emt 0:05:00]} 24. Rc2 {[%emt 0:02:38]} Ba3 {[%emt 0:00:16]} 25. f4 {[%emt 0:03:27]} e5 {[%emt 0:10:51]} 26. fxg5 {[%emt 0:11:44]} Qxg5 {[%emt 0:02:22]} 27. Qf3 {[%emt 0:01:49]} Qg6 {[%emt 0:00:25]} 28. Bc4 {[%emt 0:14:33]} Qxe4 {[%emt 0:09:16]} 29. Bxf7+ {[%emt 0:00:41]} Kg7 {[%emt 0:00:12]} 30. Qxe4 {[%emt 0:02:33]} Nxe4 {[%emt 0:00:03]} 31. Bd5 {[%emt 0:00:06]} Nxf2+ {[%emt 0:00:21]} 32. Rxf2 {[%emt 0:00:01]} Rf8 {[%emt 0:00:45]} 33. Rdf1 {[%emt 0:06:11]} Rxf2 {[%emt 0:00:52]} 34. Rxf2 {[%emt 0:00:04]} Rf8 {[%emt 0:00:10]} 35. Rxf8 {[%emt 0:00:34]} Kxf8 {[%emt 0:00:06]} 1/2-1/2

[Event "SixDays Budapest IM-B January 2024"]
[Site "Budapest"]
[Date "2024.02.01"]
[Round "9.2"]
[White "Semprun Martinez, Fernando"]
[Black "Nemeth, Zoltan"]
[Result "1/2-1/2"]
[ECO "D20"]
[WhiteElo "2071"]
[BlackElo "2194"]
[Annotator "ChessBase"]
[PlyCount "75"]
[EventDate "2024.01.26"]
[EventType "tourn"]
[EventCountry "HUN"]
[SourceTitle "playchess.com"]
[Source "ChessBase"]
[SourceQuality "1"]
[TimeControl "5400+30"]

1. d4 {[%emt 0:00:02]} d5 {[%emt 0:00:19]} 2. c4 {[%emt 0:00:01]} dxc4 {[%emt 0:00:09]} 3. e4 {[%emt 0:00:01]} c5 {[%emt 0:00:17]} 4. d5 {[%emt 0:00:01]} e6 {[%emt 0:00:09]} 5. Bxc4 {[%emt 0:00:02]} Nf6 {[%emt 0:00:36]} 6. Nc3 {[%emt 0:00:02]} exd5 {[%emt 0:00:05]} 7. Nxd5 {[%emt 0:00:08]} Nxd5 {[%emt 0:00:20]} 8. Bxd5 {[%emt 0:00:01]} Be7 {[%emt 0:00:07]} 9. Ne2 {[%emt 0:00:07]} O-O {[%emt 0:00:06]} 10. O-O {[%emt 0:00:04]} Nd7 {[%emt 0:02:51]} 11. Bf4 {[%emt 0:00:12]} Nf6 {[%emt 0:02:03]} 12. Nc3 {[%emt 0:00:02]} Qb6 {[%emt 0:03:32]} 13. e5 {[%emt 0:02:43]} Nxd5 {[%emt 0:01:00]} 14. Nxd5 {[%emt 0:00:02]} Qd8 {[%emt 0:00:20]} 15. e6 {[%emt 0:00:27]} Bxe6 {[%emt 0:05:37]} 16. Nxe7+ {[%emt 0:00:02]} Qxe7 17. Bd6 {[%emt 0:00:09]} Qd7 {[%emt 0:00:44]} 18. Bxf8 {[%emt 0:00:03]} Qxd1 {[%emt 0:00:05]} 19. Rfxd1 {[%emt 0:01:04]} Kxf8 {[%emt 0:00:02]} 20. Rac1 {[%emt 0:00:54]} b6 {[%emt 0:00:20]} 21. a3 {[%emt 0:00:38]} Ke7 {[%emt 0:01:15]} 22. f3 {[%emt 0:00:52]} Rc8 {[%emt 0:03:08]} 23. Kf2 {[%emt 0:00:08]} b5 {[%emt 0:00:33]} 24. Ke3 {[%emt 0:01:43]} a5 {[%emt 0:00:05]} 25. b4 {[%emt 0:13:23]} axb4 {[%emt 0:00:08]} 26. axb4 {[%emt 0:00:11]} Bc4 {[%emt 0:00:05]} 27. bxc5 {[%emt 0:00:52]} Rxc5 {[%emt 0:00:01]} 28. Kd4 {[%emt 0:00:19]} Rc8 {[%emt 0:02:39]} 29. Kc3 {[%emt 0:04:58]} h5 {[%emt 0:02:08]} 30. Kb4 {[%emt 0:01:00]} g6 {[%emt 0:00:17]} 31. h4 {[%emt 0:02:06]} Kf6 {[%emt 0:02:18]} 32. g3 {[%emt 0:07:04]} Re8 {[%emt 0:03:29]} 33. Re1 {[%emt 0:01:42]} Rd8 {[%emt 0:00:22]} 34. Rcd1 {[%emt 0:06:21]} Ra8 {[%emt 0:00:11]} 35. Ra1 {[%emt 0:13:01]} Rd8 {[%emt 0:00:11]} 36. Rad1 {[%emt 0:00:00]} Ra8 {[%emt 0:00:08]} 37. Ra1 {[%emt 0:00:06]} Rd8 {[%emt 0:00:08]} 38. Rad1 1/2-1/2

[Event "SixDays Budapest IM-B January 2024"]
[Site "Budapest"]
[Date "2024.02.01"]
[Round "9.3"]
[White "Srinath, Rao S.V."]
[Black "Ihnat, Marek"]
[Result "1/2-1/2"]
[ECO "B22"]
[WhiteElo "2260"]
[BlackElo "2111"]
[Annotator "ChessBase"]
[PlyCount "77"]
[EventDate "2024.01.26"]
[EventType "tourn"]
[EventCountry "HUN"]
[SourceTitle "playchess.com"]
[Source "ChessBase"]
[SourceQuality "1"]
[TimeControl "5400+30"]

1. e4 {[%emt 0:00:03]} c5 {[%emt 0:00:21]} 2. c3 {[%emt 0:03:49]} d5 {[%emt 0:00:11]} 3. exd5 {[%emt 0:00:05]} Qxd5 {[%emt 0:00:04]} 4. d4 {[%emt 0:00:06]} g6 {[%emt 0:00:48]} 5. Nf3 {[%emt 0:00:05]} Bg7 {[%emt 0:00:03]} 6. Na3 {[%emt 0:02:44]} cxd4 {[%emt 0:00:07]} 7. Nb5 {[%emt 0:05:20]} Na6 {[%emt 0:00:12]} 8. Nbxd4 {[%emt 0:01:40]} Nf6 {[%emt 0:00:49]} 9. Be2 {[%emt 0:02:02]} O-O {[%emt 0:00:45]} 10. O-O {[%emt 0:00:04]} Nc5 {[%emt 0:16:02]} 11. c4 {[%emt 0:01:46]} Qd8 {[%emt 0:00:48]} 12. h3 {[%emt 0:09:08]} a6 {[%emt 0:03:40]} 13. Be3 {[%emt 0:00:36]} Qc7 {[%emt 0:01:47]} 14. b4 {[%emt 0:04:19]} Ne6 {[%emt 0:03:18]} 15. Rc1 {[%emt 0:10:58]} Nf4 {[%emt 0:06:19]} 16. Qb3 {[%emt 0:05:08]} Nxe2+ {[%emt 0:02:51]} 17. Nxe2 {[%emt 0:01:15]} e5 {[%emt 0:07:52]} 18. Nc3 {[%emt 0:02:46]} Bf5 {[%emt 0:01:43]} 19. Rfe1 {[%emt 0:08:35]} Rac8 {[%emt 0:04:25]} 20. g4 {[%emt 0:07:26]} Be6 {[%emt 0:07:04]} 21. Nd5 {[%emt 0:03:34]} Bxd5 {[%emt 0:02:55]} 22. cxd5 {[%emt 0:00:03]} Qd7 {[%emt 0:04:03]} 23. Bc5 {[%emt 0:03:06]} Rfe8 {[%emt 0:00:39]} 24. Rcd1 {[%emt 0:03:56]} e4 {[%emt 0:04:40]} 25. Nd2 {[%emt 0:02:20]} Qxd5 {[%emt 0:03:32]} 26. Qxd5 {[%emt 0:00:06]} Nxd5 {[%emt 0:00:03]} 27. Nxe4 {[%emt 0:00:05]} Rxe4 {[%emt 0:00:52]} 28. Rxe4 {[%emt 0:00:06]} Nc3 {[%emt 0:00:01]} 29. Ree1 {[%emt 0:00:40]} Nxd1 {[%emt 0:00:22]} 30. Rxd1 {[%emt 0:00:02]} Bf8 {[%emt 0:01:04]} 31. Bxf8 {[%emt 0:00:05]} Kxf8 {[%emt 0:00:03]} 32. Rd7 {[%emt 0:00:03]} Rc1+ {[%emt 0:01:07]} 33. Kg2 {[%emt 0:00:06]} Ra1 {[%emt 0:00:26]} 34. Rxb7 {[%emt 0:00:09]} Rxa2 {[%emt 0:00:02]} 35. h4 {[%emt 0:01:14]} h6 {[%emt 0:10:25]} 36. Kg3 {[%emt 0:03:05]} Kg7 {[%emt 0:00:18]} 37. Rb6 {[%emt 0:01:28]} Ra1 {[%emt 0:00:56]} 38. f3 {[%emt 0:01:18]} a5 {[%emt 0:01:26]} 39. bxa5 {[%emt 0:01:01]} 1/2-1/2

[Event "SixDays Budapest IM-B January 2024"]
[Site "Budapest"]
[Date "2024.02.01"]
[Round "9.4"]
[White "Egresi, Mate"]
[Black "Nemitz, Alfred"]
[Result "1/2-1/2"]
[ECO "C77"]
[WhiteElo "2389"]
[BlackElo "2223"]
[Annotator "ChessBase"]
[PlyCount "96"]
[EventDate "2024.01.26"]
[EventType "tourn"]
[EventCountry "HUN"]
[SourceTitle "playchess.com"]
[Source "ChessBase"]
[SourceQuality "1"]
[TimeControl "5400+30"]

1. e4 {[%emt 0:04:52]} e5 {[%emt 0:00:08]} 2. Nf3 {[%emt 0:00:05]} Nc6 {[%emt 0:00:11]} 3. Bb5 {[%emt 0:00:05]} a6 {[%emt 0:00:04]} 4. Ba4 {[%emt 0:00:04]} Nf6 {[%emt 0:00:05]} 5. d3 {[%emt 0:00:04]} d6 {[%emt 0:00:47]} 6. c3 {[%emt 0:00:13]} Be7 {[%emt 0:04:27]} 7. O-O {[%emt 0:00:51]} O-O {[%emt 0:00:05]} 8. Re1 {[%emt 0:00:06]} b5 {[%emt 0:01:05]} 9. Bc2 {[%emt 0:00:05]} Bb7 {[%emt 0:01:58]} 10. Nbd2 {[%emt 0:00:07]} Re8 {[%emt 0:00:13]} 11. Nf1 {[%emt 0:00:06]} Bf8 {[%emt 0:00:39]} 12. Ng3 {[%emt 0:00:56]} Ne7 {[%emt 0:12:26]} 13. d4 {[%emt 0:02:32]} Ng6 {[%emt 0:01:03]} 14. Bd2 {[%emt 0:16:43]} d5 {[%emt 0:15:41]} 15. Nxe5 {[%emt 0:06:13]} Nxe4 {[%emt 0:05:31]} 16. Nxe4 {[%emt 0:05:34]} dxe4 {[%emt 0:04:29]} 17. Bxe4 {[%emt 0:18:52]} Bxe4 {[%emt 0:00:26]} 18. Rxe4 {[%emt 0:00:05]} Qd5 {[%emt 0:02:57]} 19. Qf3 {[%emt 0:07:15]} Rad8 {[%emt 0:16:09]} 20. Rae1 {[%emt 0:02:20]} Nxe5 {[%emt 0:02:29]} 21. Rxe5 {[%emt 0:01:27]} Rxe5 {[%emt 0:00:02]} 22. Rxe5 {[%emt 0:00:13]} Qxa2 {[%emt 0:00:05]} 23. Bc1 {[%emt 0:05:15]} b4 {[%emt 0:08:05]} 24. g3 {[%emt 0:03:06]} Qb1 {[%emt 0:07:27]} 25. Re1 {[%emt 0:01:13]} a5 {[%emt 0:00:43]} 26. Qc6 {[%emt 0:06:48]} bxc3 {[%emt 0:01:47]} 27. bxc3 {[%emt 0:03:14]} Qb6 {[%emt 0:00:22]} 28. Qc4 {[%emt 0:03:05]} Ra8 {[%emt 0:01:00]} 29. Qa4 {[%emt 0:03:02]} h6 {[%emt 0:01:04]} 30. Bf4 {[%emt 0:01:48]} c6 {[%emt 0:00:47]} 31. Ra1 {[%emt 0:03:41]} Qb2 {[%emt 0:00:02]} 32. Rd1 {[%emt 0:01:23]} Qxc3 {[%emt 0:01:37]} 33. Rc1 {[%emt 0:00:07]} Qf3 {[%emt 0:00:53]} 34. Rxc6 {[%emt 0:01:15]} Bb4 {[%emt 0:01:28]} 35. Rc1 {[%emt 0:00:55]} Qd5 {[%emt 0:01:27]} 36. Be3 {[%emt 0:00:54]} Rb8 {[%emt 0:01:08]} 37. Qc6 {[%emt 0:00:35]} Qxc6 {[%emt 0:00:44]} 38. Rxc6 {[%emt 0:00:01]} Ra8 {[%emt 0:00:01]} 39. Rc4 {[%emt 0:00:56]} Bf8 {[%emt 0:00:56]} 40. Ra4 {[%emt 0:00:06]} Bb4 {[%emt 0:00:02]} 41. Kf1 {[%emt 0:00:12]} Kf8 {[%emt 0:00:02]} 42. Ke2 {[%emt 0:00:03]} Ke7 {[%emt 0:00:07]} 43. Bd2 {[%emt 0:00:35]} Bxd2 {[%emt 0:00:01]} 44. Kxd2 {[%emt 0:00:05]} Kd6 {[%emt 0:00:04]} 45. Kd3 {[%emt 0:01:37]} Kd5 {[%emt 0:01:08]} 46. h4 {[%emt 0:00:07]} Ra7 {[%emt 0:01:58]} 47. f3 {[%emt 0:00:07]} g6 {[%emt 0:01:10]} 48. Kc3 {[%emt 0:00:07]} Ra8 {[%emt 0:01:08]} 1/2-1/2

[Event "SixDays Budapest IM-B January 2024"]
[Site "Budapest"]
[Date "2024.02.01"]
[Round "9.5"]
[White "Varadi, Viktor"]
[Black "Mouhamad, Joachim"]
[Result "1-0"]
[ECO "B57"]
[WhiteElo "2368"]
[BlackElo "2316"]
[Annotator "ChessBase"]
[PlyCount "91"]
[EventDate "2024.01.26"]
[EventType "tourn"]
[EventCountry "HUN"]
[SourceTitle "playchess.com"]
[Source "ChessBase"]
[SourceQuality "1"]
[TimeControl "5400+30"]

1. e4 {[%emt 0:00:02]} c5 {[%emt 0:01:48]} 2. Nf3 {[%emt 0:00:09]} d6 {[%emt 0:00:06]} 3. d4 {[%emt 0:00:08]} cxd4 {[%emt 0:00:06]} 4. Nxd4 {[%emt 0:00:08]} Nf6 {[%emt 0:00:07]} 5. Nc3 {[%emt 0:00:08]} Nc6 {[%emt 0:00:08]} 6. Bc4 {[%emt 0:00:09]} Qb6 {[%emt 0:00:13]} 7. Nb3 {[%emt 0:00:25]} e6 {[%emt 0:00:18]} 8. Bf4 {[%emt 0:00:44]} Ne5 {[%emt 0:00:21]} 9. Be2 {[%emt 0:00:18]} Bd7 {[%emt 0:02:12]} 10. g4 {[%emt 0:09:37]} Bc6 {[%emt 0:02:53]} 11. f3 {[%emt 0:13:33]} Be7 {[%emt 0:01:11]} 12. Qd2 {[%emt 0:00:32]} O-O {[%emt 0:03:10]} 13. Be3 {[%emt 0:02:40]} Qc7 {[%emt 0:00:10]} 14. g5 {[%emt 0:00:42]} Ne8 {[%emt 0:01:55]} 15. f4 {[%emt 0:00:19]} Nd7 {[%emt 0:00:09]} 16. Nd4 {[%emt 0:05:52]} a6 {[%emt 0:00:41]} 17. O-O-O {[%emt 0:08:16]} b5 {[%emt 0:01:47]} 18. a3 {[%emt 0:04:44]} Nc5 {[%emt 0:07:40]} 19. Nxc6 {[%emt 0:03:31]} Qxc6 {[%emt 0:00:07]} 20. Rhf1 {[%emt 0:00:05]} Rb8 {[%emt 0:08:17]} 21. f5 {[%emt 0:07:12]} a5 {[%emt 0:01:58]} 22. f6 {[%emt 0:03:16]} gxf6 {[%emt 0:17:52]} 23. gxf6 {[%emt 0:00:13]} Nxf6 {[%emt 0:00:28]} 24. Bh6 {[%emt 0:04:58]} Kh8 {[%emt 0:00:54]} 25. Bxf8 {[%emt 0:02:20]} Rxf8 {[%emt 0:00:31]} 26. Bxb5 {[%emt 0:07:21]} Qb7 {[%emt 0:06:14]} 27. Rde1 {[%emt 0:00:24]} Ng4 {[%emt 0:15:27]} 28. Rg1 {[%emt 0:02:30]} Rg8 {[%emt 0:05:20]} 29. Kb1 {[%emt 0:01:05]} Rg6 {[%emt 0:07:01]} 30. Ref1 {[%emt 0:04:11]} Kg7 {[%emt 0:02:10]} 31. Be2 {[%emt 0:02:57]} Ne5 {[%emt 0:05:12]} 32. Bh5 {[%emt 0:03:31]} a4 {[%emt 0:06:11]} 33. Bxg6 {[%emt 0:00:45]} hxg6 {[%emt 0:00:02]} 34. Qd4 {[%emt 0:03:29]} Bf6 {[%emt 0:02:06]} 35. Rxf6 {[%emt 0:03:11]} Kxf6 {[%emt 0:00:13]} 36. Nxa4 {[%emt 0:00:37]} Nxe4 {[%emt 0:01:34]} 37. Nc3 {[%emt 0:00:32]} Nxc3+ {[%emt 0:01:00]} 38. Qxc3 {[%emt 0:00:06]} Ke7 {[%emt 0:00:10]} 39. Rd1 {[%emt 0:02:11]} Qb8 {[%emt 0:01:25]} 40. a4 {[%emt 0:00:55]} g5 {[%emt 0:00:09]} 41. a5 {[%emt 0:01:12]} d5 {[%emt 0:00:42]} 42. b3 {[%emt 0:01:01]} Nc4 {[%emt 0:00:33]} 43. Ka2 {[%emt 0:00:33]} Nd6 {[%emt 0:00:13]} 44. Qg7 {[%emt 0:01:32]} Ne4 {[%emt 0:00:13]} 45. Rf1 {[%emt 0:00:05]} Qe8 {[%emt 0:01:24]} 46. a6 {[%emt 0:00:17]} 1-0